fUSD/lending_fUSD_20260412
["ID","MTS","AMOUNT","RATE_DAILY","PERIOD"]
[420345039,1776005456604,-500.0,0.00038356,15]
[420345040,1776005456614,-500.0,0.00038356,15]
[420345041,1776005456632,-1391.37,0.00038356,15]
[420345042,1776005456642,-500.0,0.00038356,15]
[420345043,1776005456658,-1714.41,0.00038356,15]
[420345044,1776005456672,-500.0,0.00038356,15]
[420345045,1776005456682,-500.0,0.00038356,15]
[420345046,1776005456699,-1266.57,0.00038356,15]
[420345047,1776005456710,-1605.63,0.00038356,15]
[420345048,1776005456726,-3112.63,0.00038356,15]
[420345049,1776005456742,-500.0,0.00038356,15]
[420345050,1776005456759,-500.0,0.00038356,15]
[420345051,1776005456784,-443.39937661,0.00038356,15]
[420345052,1776005456805,-2450.08,0.00038356,15]
[420345053,1776005456822,-500.0,0.00038356,15]
[420345054,1776005456839,-500.0,0.00038356,15]
[420345055,1776005456850,-840.94,0.00038356,15]
[420345056,1776005456871,-500.0,0.00038356,15]
[420345057,1776005456882,-946.64,0.00038356,15]
[420345058,1776005456898,-3378.66,0.00038356,15]
[420345059,1776005456910,-500.0,0.00038356,15]
[420345060,1776005456923,-1487.86,0.00038356,15]
[420345061,1776005456937,-1493.46,0.00038356,15]
[420345062,1776005456950,-659.78,0.00038356,15]
[420345063,1776005456963,-584.57,0.00038356,15]
[420345064,1776005456974,-1962.14,0.00038356,15]
[420345065,1776005456986,-1100.79,0.00038356,15]
[420345066,1776005457002,-5242.11,0.00038356,14]
[420345067,1776005457021,-419.58709171,0.00038356,15]
[420345068,1776005457035,-500.0,0.00038356,15]
[420345069,1776005457054,-500.0,0.00038356,15]
[420345070,1776005457077,-943.09,0.00038356,15]
[420345071,1776005457132,-722.09,0.00038356,15]
[420345072,1776005457154,-500.0,0.00038356,15]
[420345073,1776005457166,-500.0,0.00038356,15]
[420345074,1776005457188,-500.0,0.00038356,15]
[420345075,1776005457199,-626.85,0.00038356,15]
[420345076,1776005457210,-659.97,0.00038356,15]
[420345077,1776005457231,-500.0,0.00038356,15]
[420345078,1776005457242,-500.0,0.00038356,15]
[420345079,1776005457254,-500.0,0.00038356,15]
[420345080,1776005457289,-563.43,0.00038356,15]
[420345081,1776005457300,-500.0,0.00038356,15]
[420345082,1776005457315,-500.0,0.00038356,15]
[420345083,1776005457330,-1115.27,0.00038356,15]
[420345084,1776005457340,-500.0,0.00038356,15]
[420345085,1776005457352,-761.63,0.00038356,15]
[420345086,1776005457372,-676.38,0.00038356,15]
[420345087,1776005457383,-610.48097517,0.00038356,15]
[420345088,1776005457405,-860.33,0.00038356,15]
[420345089,1776005457415,-500.0,0.00038356,15]
[420345090,1776005457426,-654.64,0.00038356,15]
[420345091,1776005457448,-2123.77,0.00038356,15]
[420345092,1776005457466,-500.0,0.00038356,15]
[420345093,1776005457479,-500.0,0.00038356,15]
[420345094,1776005457506,-500.0,0.00038356,15]
[420345095,1776005457532,-500.0,0.00038356,15]
[420345096,1776005457542,-616.67,0.00038356,15]
[420345097,1776005457557,-500.0,0.00038356,15]
[420345098,1776005457580,-500.0,0.00038356,15]
[420345099,1776005457590,-623.51,0.00038356,15]
[420345100,1776005457600,-1493.42,0.00038356,15]
[420345101,1776005457610,-655.12,0.00038356,15]
[420345102,1776005457626,-500.0,0.00038356,15]
[420345103,1776005457636,-5230.77,0.00038356,15]
[420345104,1776005457647,-500.0,0.00038356,15]
[420345105,1776005457662,-580.09463593,0.00038356,15]
[420345106,1776005457673,-500.0,0.00038356,15]
[420345107,1776005457683,-291.98809465,0.00038356,15]
[420345108,1776005457698,-500.0,0.00038356,15]
[420345109,1776005457709,-655.39,0.00038356,15]
[420345110,1776005457719,-500.0,0.00038356,15]
[420345111,1776005457736,-500.0,0.00038356,15]
[420345112,1776005457746,-911.92,0.00038356,15]
[420345113,1776005457759,-500.0,0.00038356,15]
[420345114,1776005457774,-6562.63,0.00038356,2]
[420345115,1776005457787,-591.78482803,0.00038356,15]
[420345116,1776005457798,-1401.65,0.00038356,15]
[420345117,1776005457827,-4941.21,0.00038356,15]
[420345118,1776005457838,-500.0,0.00038356,15]
[420345119,1776005457849,-827.58,0.00038356,15]
[420345120,1776005457873,-1201.46,0.00038356,15]
[420345121,1776005457884,-952.96,0.00038356,15]
[420345122,1776005457895,-512.98,0.00038356,15]
[420345123,1776005457917,-591.19,0.00038356,15]
[420345124,1776005457928,-1219.33,0.00038356,15]
[420345125,1776005457939,-2688.58,0.00038356,15]
[420345126,1776005457961,-1448.82,0.00038356,15]
[420345127,1776005457986,-500.0,0.00038356,15]
[420345128,1776005457997,-585.94,0.00038356,15]
[420345129,1776005458008,-1777.78,0.00038356,15]
[420345130,1776005458024,-779.79,0.00038356,15]
[420345131,1776005458038,-560.44,0.00038356,15]
[420345132,1776005458049,-666.15,0.00038356,15]
[420345133,1776005458064,-2265.32,0.00038356,15]
[420345134,1776005458075,-851.46,0.00038356,15]
[420345135,1776005458084,-500.0,0.00038356,15]
[420345136,1776005458100,-500.0,0.00038356,15]
[420345137,1776005458111,-500.0,0.00038356,15]
[420345138,1776005458123,-2602.06,0.00038356,15]
[420345139,1776005458133,-369.5460335,0.00038356,15]
[420345140,1776005458146,-500.0,0.00038356,15]
[420345141,1776005458157,-1202.16,0.00038356,15]
[420345142,1776005458171,-500.0,0.00038356,15]
[420345143,1776005458183,-500.0,0.00038356,15]
[420345144,1776005458201,-500.0,0.00038356,15]
[420345145,1776005458212,-1071.56,0.00038356,15]
[420345146,1776005458221,-1506.74,0.00038356,15]
[420345147,1776005458242,-500.0,0.00038356,15]
[420345148,1776005458251,-500.0,0.00038356,15]
[420345149,1776005458261,-635.56,0.00038356,15]
[420345150,1776005458279,-1477.66,0.00038356,15]
[420345151,1776005458289,-599.66,0.00038356,15]
[420345152,1776005458300,-661.99,0.00038356,15]
[420345153,1776005458316,-4891.12,0.00038356,15]
[420345154,1776005458329,-500.0,0.00038356,15]
[420345155,1776005458341,-252.72194472,0.00038356,15]
[420345156,1776005458363,-518.67,0.00038356,15]
[420345157,1776005458376,-500.0,0.00038356,15]
[420345158,1776005458395,-500.0,0.00038356,15]
[420345159,1776005458404,-500.0,0.00038356,15]
[420345160,1776005458415,-1872.17,0.00038356,15]
[420345161,1776005458464,-1004.03,0.00038356,15]
[420345162,1776005458474,-2623.88,0.00038356,15]
[420345163,1776005458499,-500.0,0.00038356,15]
[420345164,1776005458954,-500.0,0.00038356,15]
[420345165,1776005458992,-1948.76,0.00038356,15]
[420345166,1776005459009,-2397.33,0.00038356,15]
[420345167,1776005459056,-2274.86,0.00038356,15]
[420345168,1776005459093,-91.67623957,0.00038356,15]
[420345169,1776005459992,-382.82685681,0.00038356,15]
[420345170,1776005460012,-25.49690362,0.00038356,15]
[420345171,1776005460025,-500.0,0.00038356,15]
[420345172,1776005460037,-500.0,0.00038356,15]
[420345173,1776005460050,-500.0,0.00038356,15]
[420345174,1776005460074,-598.76,0.00038356,15]
[420345175,1776005460085,-500.0,0.00038356,15]
[420345176,1776005460102,-1196.36,0.00038356,15]
[420345177,1776005460115,-507.76,0.00038356,15]
[420345178,1776005460144,-500.0,0.00038356,15]
[420345179,1776005460164,-196.45505797,0.00038356,15]
[420345180,1776005460178,-291.14065596,0.00038356,15]
[420345181,1776005460188,-207.43299798,0.00038356,15]
[420345182,1776005460210,-663.79,0.00038356,15]
[420345183,1776005460220,-500.0,0.00038356,15]
[420345184,1776005460231,-929.9,0.00038356,15]
[420345185,1776005460250,-1153.18,0.00038356,15]
[420345186,1776005460261,-500.0,0.00038356,15]
[420345187,1776005460272,-1663.82,0.00038356,15]
[420345188,1776005460292,-500.0,0.00038356,15]
[420345189,1776005460302,-1938.69,0.00038356,15]
[420345190,1776005460312,-4676.61767476,0.00038356,15]
[420345191,1776005460336,-388.58232524,0.00038356,15]
[420345192,1776005460352,-122.02767476,0.00038356,15]
[420345193,1776005460368,-377.97232524,0.00038356,15]
[420345194,1776005460385,-555.83407808,0.00038356,15]
[420345195,1776005460400,-54.14895668,0.00038356,15]
[420345196,1776005460416,-630.31104332,0.00038356,15]
[420345197,1776005460436,-239.354665,0.00038356,15]
[420345198,1776005460453,-260.645335,0.00038356,15]
[420345199,1776005460471,-193.7908309,0.00038356,15]
[420345200,1776005460498,-306.2091691,0.00038356,15]
[420345201,1776005460511,-295.03546044,0.00038356,15]
[420345202,1776005460535,-581.91653023,0.00038356,15]
[420345203,1776005460555,-610.44814184,0.00038356,15]
[420345204,1776005460601,-298.23049658,0.00038356,15]
[420345205,1776005460630,-1223.54483135,0.00038356,15]
[420345206,1776005460644,-779.7194535,0.00038356,15]
[420345207,1776005460672,-255.3405465,0.00038356,15]
[420345208,1776005460707,-25.3794535,0.00038356,15]
[420345209,1776005460720,-744.7605465,0.00038356,15]
[420345210,1776005460755,-968.71790815,0.00038356,15]
[420345211,1776005460769,-110.26209185,0.00038356,15]
[420345212,1776005460801,-500.0,0.00038356,15]
[420345213,1776005460812,-1019.79,0.00038356,15]
[420345214,1776005460830,-1262.30232954,0.00038356,15]
[420345215,1776005463394,-912.53767046,0.00038356,15]
[420345216,1776005463411,-500.0,0.00038356,15]
[420345217,1776005463426,-754.48252841,0.00038356,15]
[420345218,1776005463444,-1434.37747159,0.00038356,15]
[420345219,1776005463458,-200.06186064,0.00038356,15]
[420345220,1776005463474,-333.5733725,0.00038356,15]
[420345221,1776005463488,-861.54,0.00038356,15]
[420345222,1776005463502,-500.0,0.00038356,15]
[420345223,1776005463514,-500.0,0.00038356,15]
[420345224,1776005463526,-646.68104489,0.00038356,15]
[420345225,1776005463543,-623.82895511,0.00038356,15]
[420345226,1776005463556,-719.61953595,0.00038356,15]
[420345227,1776005463595,-793.86978,0.00038356,15]
[420345228,1776005463610,-606.81999954,0.00038356,15]
[420345229,1776005463650,-1486.18068451,0.00038356,15]
[420345230,1776005463664,-726.13,0.00038356,15]
[420345231,1776005463681,-500.0,0.00038356,15]
[420345232,1776005463698,-500.0,0.00038356,15]
[420345233,1776005463716,-500.0,0.00038356,15]
[420345234,1776005463731,-88.24265773,0.00038356,15]
[420345235,1776005463750,-2838.06734227,0.00038356,15]
[420345236,1776005463764,-500.0,0.00038356,15]
[420345237,1776005463788,-500.0,0.00038356,15]
[420345238,1776005463803,-500.0,0.00038356,15]
[420345239,1776005463835,-837.38,0.00038356,15]
[420345240,1776005463852,-2066.35,0.00038356,15]
[420345241,1776005463882,-1208.89,0.00038356,15]
[420345242,1776005463898,-500.0,0.00038356,15]
[420345243,1776005463934,-897.22,0.00038356,2]
[420345244,1776005463977,-500.0,0.00038356,15]
[420345245,1776005463989,-500.0,0.00038356,15]
[420345246,1776005464017,-346.07690918,0.00038356,15]
[420345247,1776005464083,-1500.35654479,0.00027397,10]
[420345248,1776005464098,-492.59345521,0.00027397,10]
[420345249,1776005464114,-1180.0,0.00036266,30]
[420345250,1776005464128,-1317.35309082,0.00038356,15]
[420345251,1776005464141,-500.0,0.00038356,15]
[420345252,1776005464156,-500.0,0.00038356,15]
[420345253,1776005464177,-735.64,0.00038356,15]
[420345254,1776005464194,-500.0,0.00038356,15]
[420345255,1776005464215,-635.77281359,0.00038356,15]
[420345256,1776005464227,-500.0,0.00038356,15]
[420345257,1776005464248,-614.52,0.00038356,15]
[420345258,1776005464261,-500.0,0.00038356,15]
[420345259,1776005464274,-500.0,0.00038356,15]
[420345260,1776005464289,-205.85,0.00038356,15]
[420345261,1776005464301,-2265.94,0.00038356,15]
[420345262,1776005464314,-500.0,0.00038356,15]
[420345263,1776005464329,-500.0,0.00038356,15]
[420345264,1776005464341,-500.0,0.00038356,15]
[420345265,1776005464357,-28357.14,0.00038356,15]
[420345266,1776005464374,-2142.12,0.00038356,15]
[420345267,1776005464391,-552.12,0.00038356,15]
[420345268,1776005464407,-2015.52,0.00038356,15]
[420345269,1776005464424,-500.0,0.00038356,15]
[420345270,1776005464443,-500.0,0.00038356,15]
[420345271,1776005464454,-500.0,0.00038356,15]
[420345272,1776005464482,-1620.66,0.00038356,15]
[420345273,1776005464495,-500.0,0.00038356,15]
[420345274,1776005464516,-609.98,0.00038356,15]
[420345275,1776005464534,-500.0,0.00038356,15]
[420345276,1776005464547,-829.71,0.00038356,15]
[420345277,1776005464567,-741.58,0.00038356,15]
[420345278,1776005464580,-662.18,0.00038356,15]
[420345279,1776005464598,-500.0,0.00038356,15]
[420345280,1776005464616,-500.0,0.00038356,15]
[420345281,1776005464631,-58710.42,0.00038356,15]
[420345282,1776005464651,-338.2050939,0.00038356,15]
[420345283,1776005464691,-500.0,0.00038356,15]
[420345284,1776005464719,-537.28,0.00038356,15]
[420345285,1776005464758,-560.44,0.00038356,15]
[420345286,1776005464800,-500.0,0.00038356,15]
[420345287,1776005464835,-1283.78,0.00038356,15]
[420345288,1776005464881,-1096.59,0.00038356,2]
[420345289,1776005464919,-290.24915928,0.00038356,15]
[420345290,1776005464943,-5611.23,0.00038356,15]
[420345291,1776005464967,-500.0,0.00038356,15]
[420345292,1776005464997,-500.0,0.00038356,15]
[420345293,1776005465029,-500.0,0.00038356,15]
[420345294,1776005465068,-573.03,0.00038356,15]
[420345295,1776005465082,-1144.18,0.00038356,15]
[420345296,1776005465108,-500.0,0.00038356,15]
[420345297,1776005465120,-520.0,0.00038356,15]
[420345298,1776005465139,-2611.89,0.00038356,15]
[420345299,1776005465161,-500.0,0.00038356,15]
[420345300,1776005465173,-971.17,0.00038356,15]
[420345301,1776005465199,-500.0,0.00038356,15]
[420345302,1776005465212,-1338.86,0.00038356,15]
[420345303,1776005465239,-500.0,0.00038356,15]
[420345304,1776005465251,-500.0,0.00038356,15]
[420345305,1776005465267,-500.0,0.00038356,15]
[420345306,1776005465281,-500.0,0.00038356,15]
[420345307,1776005465296,-500.0,0.00038356,15]
[420345308,1776005465311,-654.24,0.00038356,15]
[420345309,1776005465326,-678.49,0.00038356,15]
[420345310,1776005465338,-2543.34,0.00038356,15]
[420345311,1776005465353,-500.0,0.00038356,15]
[420345312,1776005465367,-500.0,0.00038356,15]
[420345313,1776005465382,-500.0,0.00038356,15]
[420345314,1776005465395,-420.2889733,0.00038356,15]
[420345315,1776005465407,-500.0,0.00038356,15]
[420345316,1776005465423,-500.0,0.00038356,15]
[420345317,1776005465436,-500.0,0.00038356,15]
[420345318,1776005465458,-500.0,0.00038356,15]
[420345319,1776005465472,-630.56238194,0.00038356,15]
[420345320,1776005465491,-676.65,0.00038356,15]
[420345321,1776005465521,-500.0,0.00038356,15]
[420345322,1776005465537,-500.0,0.00038356,15]
[420345323,1776005465559,-581.69,0.00038356,15]
[420345324,1776005465579,-500.0,0.00038356,15]
[420345325,1776005465591,-500.0,0.00038356,15]
[420345326,1776005465606,-500.0,0.00038356,15]
[420345327,1776005465620,-1352.43,0.00038356,15]
[420345328,1776005465632,-600.92384681,0.00038356,15]
[420345329,1776005465647,-500.0,0.00038356,15]
[420345330,1776005465664,-500.0,0.00038356,15]
[420345331,1776005465674,-500.0,0.00038356,15]
[420345332,1776005465690,-500.0,0.00038356,15]
[420345333,1776005465701,-946.92,0.00038356,15]
[420345334,1776005465712,-156.6955405,0.00038356,15]
[420345335,1776005465732,-500.0,0.00038356,15]
[420345336,1776005465742,-500.0,0.00038356,15]
[420345337,1776005465753,-500.0,0.00038356,15]
[420345338,1776005465773,-500.0,0.00038356,15]
[420345339,1776005465784,-500.0,0.00038356,15]
[420345340,1776005465794,-507.55,0.00038356,15]
[420345341,1776005465819,-546.69928655,0.00038356,15]
[420345342,1776005465830,-500.0,0.00038356,15]
[420345343,1776005466529,-1059.29,0.00038356,15]
[420345344,1776005466579,-500.0,0.00038356,15]
[420345345,1776005466616,-642.86479868,0.00038356,15]
[420345346,1776005466635,-1086.39,0.00038356,15]
[420345347,1776005466645,-500.0,0.00038356,15]
[420345348,1776005466658,-500.0,0.00038356,15]
[420345349,1776005466668,-500.0,0.00038356,15]
[420345350,1776005466677,-500.0,0.00038356,15]
[420345351,1776005466687,-535.21,0.00038356,15]
[420345352,1776005466699,-500.0,0.00038356,15]
[420345353,1776005466711,-500.0,0.00038356,15]
[420345354,1776005466721,-2044.44,0.00038356,15]
[420345355,1776005466731,-500.0,0.00038356,15]
[420345356,1776005466743,-827.58,0.00038356,15]
[420345357,1776005466754,-500.0,0.00038356,15]
[420345358,1776005466765,-500.0,0.00038356,15]
[420345359,1776005466779,-500.0,0.00038356,15]
[420345360,1776005466792,-500.0,0.00038356,15]
[420345361,1776005466801,-500.0,0.00038356,15]
[420345362,1776005466816,-557.87,0.00038356,15]
[420345363,1776005466827,-500.0,0.00038356,15]
[420345364,1776005466837,-500.0,0.00038356,15]
[420345365,1776005466846,-793.18,0.00038356,15]
[420345366,1776005466865,-500.0,0.00038356,15]
[420345367,1776005466878,-918.29,0.00038356,15]
[420345368,1776005466889,-500.0,0.00038356,15]
[420345369,1776005466922,-1460.81,0.00038356,15]
[420345370,1776005466933,-1405.72,0.00038356,15]
[420345371,1776005466970,-2317.85,0.00038356,15]
[420345372,1776005466982,-653.18,0.00038356,15]
[420345373,1776005466993,-500.0,0.00038356,15]
[420345374,1776005467015,-500.0,0.00038356,15]
[420345375,1776005467027,-500.0,0.00038356,15]
[420345376,1776005467039,-1339.07,0.00038356,15]
[420345377,1776005467064,-1761.64,0.00038356,15]
[420345378,1776005467075,-500.0,0.00038356,15]
[420345379,1776005467087,-500.0,0.00038356,15]
[420345380,1776005467112,-500.0,0.00038356,15]
[420345381,1776005467132,-794.44,0.00038356,15]
[420345382,1776005467142,-1682.65025508,0.00038356,15]
[420345383,1776005467210,-828.73,0.00038356,15]
[420345384,1776005467230,-1128.37587025,0.00038356,15]
[420345385,1776005467272,-358.26387467,0.00038356,15]
[420345386,1776005467301,-540.73445519,0.00038356,15]
[420345387,1776005467316,-232.43426723,0.00038356,15]
[420345388,1776005467982,-327.63500001,0.00026138,2]
[420345389,1776005468003,-461.357454,0.00026138,2]
[420345390,1776005468016,-1184.36591738,0.00026138,2]
[420345391,1776005468051,-497.64162861,0.00026138,2]
[420345392,1776005468061,-9101.50422565,0.00037722,2]
[420345393,1776005468080,-1084.0,0.00038,30]
[420345394,1776005468097,-1945.55573277,0.00038356,15]
[420345395,1776005468117,-689.16,0.00038356,15]
[420345396,1776005468128,-500.0,0.00038356,15]
[420345397,1776005468140,-500.0,0.00038356,15]
[420345398,1776005468158,-500.0,0.00038356,15]
[420345399,1776005468169,-500.0,0.00038356,15]
[420345400,1776005468181,-500.0,0.00038356,15]
[420345401,1776005468199,-500.0,0.00038356,15]
[420345402,1776005468208,-1893.28,0.00038356,15]
[420345403,1776005468218,-597.43,0.00038356,15]
[420345404,1776005468240,-1106.03,0.00038356,15]
[420345405,1776005468249,-902.43,0.00038356,15]
[420345406,1776005468262,-615.26,0.00038356,15]
[420345407,1776005468281,-500.0,0.00038356,15]
[420345408,1776005468302,-500.0,0.00038356,15]
[420345409,1776005468312,-500.0,0.00038356,15]
[420345410,1776005468322,-500.0,0.00038356,15]
[420345411,1776005468339,-500.0,0.00038356,15]
[420345412,1776005468352,-500.0,0.00038356,15]
[420345413,1776005468362,-510.93,0.00038356,15]
[420345414,1776005468381,-500.0,0.00038356,15]
[420345415,1776005468414,-500.0,0.00038356,15]
[420345416,1776005468425,-500.0,0.00038356,15]
[420345417,1776005468459,-2284.87,0.00038356,15]
[420345418,1776005468477,-2189.67,0.00038356,15]
[420345419,1776005468498,-500.0,0.00038356,15]
[420345420,1776005468517,-500.0,0.00038356,15]
[420345421,1776005468527,-500.0,0.00038356,15]
[420345422,1776005468545,-500.0,0.00038356,15]
[420345423,1776005468563,-500.0,0.00038356,15]
[420345424,1776005468597,-531.28528365,0.00038356,15]
[420345425,1776005468610,-500.0,0.00038356,15]
[420345426,1776005468629,-621.73,0.00038356,15]
[420345427,1776005468642,-1055.27,0.00038356,15]
[420345428,1776005468669,-6.82516689,0.00038356,15]
[420345429,1776005468688,-375.0009354,0.00038356,15]
[420345430,1776005468783,-118.17389771,0.00038356,15]
[420345431,1776005468795,-1016.77,0.00038356,15]
[420345432,1776005468811,-545.81263677,0.00038356,15]
[420345433,1776005468852,-56.55630182,0.00038356,15]
[420345434,1776005468869,-811.43,0.00038356,15]
[420345435,1776005468894,-500.0,0.00038356,15]
[420345436,1776005468912,-368.63656289,0.00038356,15]
[420345437,1776005468933,-340.37713529,0.00038356,15]
[420345438,1776005469023,-159.62286471,0.00038356,15]
[420345439,1776005469044,-500.0,0.00038356,15]
[420345440,1776005469059,-500.0,0.00038356,15]
[420345441,1776005469073,-500.0,0.00038356,15]
[420345442,1776005469086,-500.0,0.00038356,15]
[420345443,1776005469097,-5100.4614209,0.00038356,15]
[420345444,1776005469135,-356.6985434,0.00038256,13]
[420345445,1776005469146,-143.12241109,0.00038356,15]
[420345446,1776005469179,-325.3344298,0.00038356,15]
[420345447,1776005469192,-3431.89420711,0.00038356,15]
[420345448,1776005469208,-1139.0337321,0.00038356,15]
[420345449,1776005469236,-3809.10306472,0.00038356,15]
[420345450,1776005469355,-1036.65328089,0.00038356,15]
[420345451,1776005469367,-8864.39130575,0.00038356,15]
[420345452,1776005469379,-500.0,0.00038356,15]
[420345453,1776005469399,-289.17836057,0.00038356,15]
[420345454,1776005469482,-210.82163943,0.00038356,15]
[420345455,1776005469492,-500.0,0.00038356,15]
[420345456,1776005469502,-787.28,0.00038356,15]
[420345457,1776005469513,-1437.47,0.00038356,15]
[420345458,1776005469524,-787.28,0.00038356,15]
[420345459,1776005469534,-1157.26,0.00038356,15]
[420345460,1776005469543,-1255.84,0.00038356,15]
[420345461,1776005469555,-1155.04,0.00038356,14]
[420345462,1776005469565,-677.5,0.00038356,15]
[420345463,1776005469583,-500.0,0.00038356,15]
[420345464,1776005469593,-500.0,0.00038356,15]
[420345465,1776005469602,-573.50507585,0.00038356,15]
[420345466,1776005469618,-582.66,0.00038356,15]
[420345467,1776005469630,-500.0,0.00038356,15]
[420345468,1776005469640,-500.0,0.00038356,15]
[420345469,1776005469652,-500.0,0.00038356,15]
[420345470,1776005469664,-500.0,0.00038356,15]
[420345471,1776005469676,-1761.38,0.00038356,15]
[420345472,1776005469686,-2095.82,0.00038356,15]
[420345473,1776005469701,-500.0,0.00038356,15]
[420345474,1776005469713,-500.0,0.00038356,15]
[420345475,1776005469735,-500.0,0.00038356,15]
[420345476,1776005469744,-500.0,0.00038356,15]
[420345477,1776005469754,-20000.0,0.00038356,15]
[420345478,1776005469772,-500.0,0.00038356,15]
[420345479,1776005469785,-500.0,0.00038356,15]
[420345480,1776005469799,-500.0,0.00038356,15]
[420345481,1776005469808,-500.0,0.00038356,15]
[420345482,1776005469823,-513.74,0.00038356,15]
[420345483,1776005469837,-500.0,0.00038356,15]
[420345484,1776005469848,-500.0,0.00038356,15]
[420345485,1776005469862,-884.55,0.00038356,15]
[420345486,1776005469872,-500.0,0.00038356,15]
[420345487,1776005469889,-1561.39,0.00038356,15]
[420345488,1776005469902,-500.0,0.00038356,15]
[420345489,1776005469923,-1975.56,0.00038356,15]
[420345490,1776005469935,-1174.49,0.00038356,15]
[420345491,1776005469963,-500.0,0.00038356,15]
[420345492,1776005469975,-500.0,0.00038356,15]
[420345493,1776005469999,-500.0,0.00038356,15]
[420345494,1776005470009,-685.12,0.00038356,15]
[420345495,1776005470039,-1549.98,0.00038356,15]
[420345496,1776005470049,-1923.17,0.00038356,15]
[420345497,1776005470062,-500.0,0.00038356,15]
[420345498,1776005470096,-500.0,0.00038356,15]
[420345499,1776005470134,-500.0,0.00038356,15]
[420345500,1776005470170,-500.0,0.00038356,15]
[420345501,1776005470185,-500.0,0.00038356,15]
[420345502,1776005470194,-500.0,0.00038356,15]
[420345503,1776005470217,-500.0,0.00038356,15]
[420345504,1776005470236,-500.0,0.00038356,15]
[420345505,1776005470246,-500.0,0.00038356,15]
[420345506,1776005470272,-821.35,0.00038356,15]
[420345507,1776005470302,-2087.29,0.00038356,15]
[420345508,1776005470313,-795.11,0.00038356,15]
[420345509,1776005470346,-3227.04,0.00038356,15]
[420345510,1776005470358,-633.64,0.00038356,15]
[420345511,1776005470379,-2560.14,0.00038356,15]
[420345512,1776005470406,-500.0,0.00038356,15]
[420345513,1776005470436,-500.0,0.00038356,15]
[420345514,1776005470454,-500.0,0.00038356,15]
[420345515,1776005470474,-374.56579204,0.00038356,15]
[420345516,1776005470523,-500.0,0.00038356,15]
[420345517,1776005470547,-500.0,0.00038356,15]
[420345518,1776005470562,-500.0,0.00038356,15]
[420345519,1776005470575,-500.0,0.00038356,15]
[420345520,1776005470589,-500.0,0.00038356,15]
[420345521,1776005470603,-2338.92,0.00038356,15]
[420345522,1776005470616,-500.0,0.00038356,15]
[420345523,1776005470625,-500.0,0.00038356,15]
[420345524,1776005470647,-500.0,0.00038356,15]
[420345525,1776005470658,-1346.29,0.00038356,15]
[420345526,1776005470668,-597.66,0.00038356,15]
[420345527,1776005470678,-500.0,0.00038356,15]
[420345528,1776005470689,-500.0,0.00038356,15]
[420345529,1776005470703,-1247.25,0.00038356,15]
[420345530,1776005470719,-1884.08,0.00038356,15]
[420345531,1776005470731,-2452.95,0.00038356,15]
[420345532,1776005470741,-1310.88,0.00038356,15]
[420345533,1776005470755,-500.0,0.00038356,15]
[420345534,1776005470766,-500.0,0.00038356,15]
[420345535,1776005470777,-500.0,0.00038356,15]
[420345536,1776005470787,-2178.6,0.00038356,15]
[420345537,1776005470800,-1796.29,0.00038356,15]
[420345538,1776005470825,-500.0,0.00038356,15]